[Event "November 21 Late 2023"]
[Site "https://www.chess.com"]
[Date "2023.11.21"]
[Round "9"]
[White "Milchev, Nikolay"]
[Black "Joie, Sebastien"]
[Result "1-0"]
[Board "58"]
[TimeControl "180+1"]
[WhiteFideId "2906090"]
[BlackFideId "650420"]
[WhiteElo "2449"]
[BlackElo "2396"]
[WhiteTeam "ENG"]
[BlackTeam "FRA"]
[WhiteClock "0:01:24"]
[BlackClock "0:00:01"]

1. Nf3 {[%clk 0:03:00]}  d5 {[%clk 0:02:29]} 2. c4 {[%clk 0:03:01]}  e6 {[%clk 0:01:59]} 3. g3 {[%clk 0:02:59]}  Nf6 {[%clk 0:01:59]} 4. Bg2 {[%clk 0:02:58]}  Be7 {[%clk 0:02:00]} 5. O-O {[%clk 0:02:59]}  O-O {[%clk 0:02:00]} 6. d4 {[%clk 0:02:59]}  c6 {[%clk 0:01:59]} 7. Nbd2 {[%clk 0:02:58]}  b6 {[%clk 0:01:59]} 8. Qc2 {[%clk 0:02:58]}  Bb7 {[%clk 0:01:58]} 9. e4 {[%clk 0:02:58]}  Na6 {[%clk 0:01:59]} 10. e5 {[%clk 0:02:58]}  Nd7 {[%clk 0:01:58]} 11. Rd1 {[%clk 0:02:58]}  Rc8 {[%clk 0:01:57]} 12. cxd5 {[%clk 0:02:50]}  Nb4 {[%clk 0:01:57]} 13. Qb3 {[%clk 0:02:50]}  Nxd5 {[%clk 0:01:56]} 14. Ne4 {[%clk 0:02:46]}  c5 {[%clk 0:01:51]} 15. dxc5 {[%clk 0:02:46]}  Nxc5 {[%clk 0:01:51]} 16. Nxc5 {[%clk 0:02:47]}  Bxc5 {[%clk 0:01:51]} 17. Bg5 {[%clk 0:02:46]}  Qc7 {[%clk 0:01:50]} 18. Rac1 {[%clk 0:02:44]}  Nb4 {[%clk 0:01:31]} 19. a3 {[%clk 0:02:30]}  Bd5 {[%clk 0:01:12]} 20. Qa4 {[%clk 0:02:29]}  Na2 {[%clk 0:00:54]} 21. Ra1 {[%clk 0:02:15]}  h6 {[%clk 0:00:38]} 22. Bf4 {[%clk 0:02:00]}  g5 {[%clk 0:00:21]} 23. Bd2 {[%clk 0:01:58]}  Qb7 {[%clk 0:00:08]} 24. Ne1 {[%clk 0:01:52]}  b5 {[%clk 0:00:08]} 25. Qg4 {[%clk 0:01:44]}  Bxg2 {[%clk 0:00:03]} 26. Nxg2 {[%clk 0:01:43]}  Rfd8 {[%clk 0:00:02]} 27. Rxa2 {[%clk 0:01:38]}  Qd5 {[%clk 0:00:02]} 28. Raa1 {[%clk 0:01:36]}  Qxe5 {[%clk 0:00:02]} 29. Bc3 {[%clk 0:01:33]}  Qf5 {[%clk 0:00:01]} 30. Qxf5 {[%clk 0:01:31]}  exf5 {[%clk 0:00:02]} 31. Ne3 {[%clk 0:01:27]}  f4 {[%clk 0:00:02]} 32. gxf4 {[%clk 0:01:28]}  gxf4 {[%clk 0:00:02]} 33. Nd5 {[%clk 0:01:27]}  Rd6 {[%clk 0:00:01]} 34. Ne7+ {[%clk 0:01:26]}  Kf8 {[%clk 0:00:01]} 35. Nxc8 {[%clk 0:01:26]}  Rg6+ {[%clk 0:00:01]} 36. Kh1 {[%clk 0:01:25]}  f3 {[%clk 0:00:01]} 37. Rd8# {[%clk 0:01:24]} 1-0

[Event "November 21 Late 2023"]
[Site "https://www.chess.com"]
[Date "2023.11.21"]
[Round "9"]
[White "Batsiashvili, Nino"]
[Black "Tikhonov, Viacheslav"]
[Result "1-0"]
[Board "59"]
[TimeControl "180+1"]
[WhiteFideId "13602993"]
[BlackFideId "44196407"]
[WhiteElo "2233"]
[BlackElo "2191"]
[WhiteTeam "GEO"]
[BlackTeam "RUS"]
[WhiteClock "0:00:33"]
[BlackClock "0:00:00"]

1. e4 {[%clk 0:02:55]}  c5 {[%clk 0:02:55]} 2. Nf3 {[%clk 0:02:55]}  g6 {[%clk 0:02:55]} 3. d4 {[%clk 0:02:55]}  cxd4 {[%clk 0:02:56]} 4. Nxd4 {[%clk 0:02:55]}  Nc6 {[%clk 0:02:56]} 5. Be3 {[%clk 0:02:54]}  Nf6 {[%clk 0:02:55]} 6. Nc3 {[%clk 0:02:46]}  Bg7 {[%clk 0:02:54]} 7. f3 {[%clk 0:02:46]}  O-O {[%clk 0:02:54]} 8. g4 {[%clk 0:02:45]}  Nxd4 {[%clk 0:02:45]} 9. Bxd4 {[%clk 0:02:45]}  d6 {[%clk 0:02:42]} 10. h4 {[%clk 0:02:43]}  Qa5 {[%clk 0:02:40]} 11. Qd2 {[%clk 0:02:38]}  Bd7 {[%clk 0:02:29]} 12. h5 {[%clk 0:02:37]}  b5 {[%clk 0:01:30]} 13. hxg6 {[%clk 0:02:21]}  fxg6 {[%clk 0:01:13]} 14. Qh2 {[%clk 0:02:20]}  e5 {[%clk 0:01:04]} 15. Be3 {[%clk 0:02:08]}  Rac8 {[%clk 0:00:31]} 16. Bd3 {[%clk 0:02:02]}  Rxc3 {[%clk 0:00:14]} 17. bxc3 {[%clk 0:02:01]}  Qxc3+ {[%clk 0:00:15]} 18. Ke2 {[%clk 0:02:01]}  h5 {[%clk 0:00:07]} 19. gxh5 {[%clk 0:01:49]}  Nxh5 {[%clk 0:00:06]} 20. Rag1 {[%clk 0:01:50]}  Rf6 {[%clk 0:00:02]} 21. Rg2 {[%clk 0:01:29]}  Kf7 {[%clk 0:00:02]} 22. Rhg1 {[%clk 0:01:27]}  Kf8 {[%clk 0:00:01]} 23. Rxg6 {[%clk 0:01:27]}  Rxg6 {[%clk 0:00:02]} 24. Rxg6 {[%clk 0:01:27]}  Nf6 {[%clk 0:00:02]} 25. Rxf6+ {[%clk 0:01:22]}  Bxf6 {[%clk 0:00:03]} 26. Qh7 {[%clk 0:01:23]}  Be6 {[%clk 0:00:01]} 27. Bh6+ {[%clk 0:01:09]}  Ke8 {[%clk 0:00:01]} 28. Qxa7 {[%clk 0:01:10]}  Kd8 {[%clk 0:00:01]} 29. Qb6+ {[%clk 0:01:04]}  Kc8 {[%clk 0:00:02]} 30. Qxd6 {[%clk 0:01:04]}  Bc4 {[%clk 0:00:01]} 31. Qc6+ {[%clk 0:00:51]}  Kb8 {[%clk 0:00:01]} 32. Qxf6 {[%clk 0:00:50]}  Qxc2+ {[%clk 0:00:01]} 33. Kf1 {[%clk 0:00:47]}  Qxd3+ {[%clk 0:00:02]} 34. Kg2 {[%clk 0:00:47]}  Qf1+ {[%clk 0:00:03]} 35. Kg3 {[%clk 0:00:46]}  Qg1+ {[%clk 0:00:03]} 36. Kh4 {[%clk 0:00:46]}  Qh2+ {[%clk 0:00:03]} 37. Kg5 {[%clk 0:00:46]}  Qg3+ {[%clk 0:00:04]} 38. Kh5 {[%clk 0:00:44]}  Qh3+ {[%clk 0:00:03]} 39. Kg6 {[%clk 0:00:45]}  Qg3+ {[%clk 0:00:02]} 40. Kh7 {[%clk 0:00:45]}  Be2 {[%clk 0:00:01]} 41. Qd8+ {[%clk 0:00:37]}  Kb7 {[%clk 0:00:01]} 42. Qd5+ {[%clk 0:00:36]}  Kb6 {[%clk 0:00:01]} 43. Bf8 {[%clk 0:00:33]}  Bxf3 {[%clk 0:00:00]} 44. Bc5+ {[%clk 0:00:33]} 1-0

[Event "November 21 Late 2023"]
[Site "https://www.chess.com"]
[Date "2023.11.21"]
[Round "9"]
[White "Sanchez Alvares, Kelvin Antonio"]
[Black "Arnold, Ken"]
[Result "0-1"]
[Board "62"]
[TimeControl "180+1"]
[WhiteFideId "3906680"]
[BlackFideId "2056836"]
[WhiteElo "2217"]
[BlackElo "2431"]
[WhiteTeam "VEN"]
[BlackTeam "USA"]
[WhiteClock "0:00:00"]
[BlackClock "0:00:11"]

1. e4 {[%clk 0:02:50]}  c6 {[%clk 0:02:56]} 2. d4 {[%clk 0:02:46]}  d5 {[%clk 0:02:57]} 3. exd5 {[%clk 0:02:38]}  cxd5 {[%clk 0:02:58]} 4. c4 {[%clk 0:02:38]}  Nf6 {[%clk 0:02:58]} 5. Nc3 {[%clk 0:02:37]}  Nc6 {[%clk 0:02:58]} 6. h3 {[%clk 0:02:33]}  e5 {[%clk 0:02:43]} 7. dxe5 {[%clk 0:02:31]}  Nxe5 {[%clk 0:02:42]} 8. cxd5 {[%clk 0:02:31]}  Bc5 {[%clk 0:02:36]} 9. Be2 {[%clk 0:02:20]}  O-O {[%clk 0:02:32]} 10. Bg5 {[%clk 0:02:12]}  h6 {[%clk 0:02:29]} 11. Bxf6 {[%clk 0:02:05]}  Qxf6 {[%clk 0:02:27]} 12. Nf3 {[%clk 0:02:02]}  Nxf3+ {[%clk 0:02:26]} 13. Bxf3 {[%clk 0:02:01]}  Re8+ {[%clk 0:02:25]} 14. Kf1 {[%clk 0:01:57]}  Bf5 {[%clk 0:02:16]} 15. g4 {[%clk 0:01:51]}  Be4 {[%clk 0:02:02]} 16. Kg2 {[%clk 0:01:48]}  Rad8 {[%clk 0:01:20]} 17. Re1 {[%clk 0:01:40]}  Bg6 {[%clk 0:01:16]} 18. Qd2 {[%clk 0:01:34]}  h5 {[%clk 0:01:06]} 19. Rxe8+ {[%clk 0:01:22]}  Rxe8 {[%clk 0:01:05]} 20. Re1 {[%clk 0:01:20]}  Rxe1 {[%clk 0:00:57]} 21. Qxe1 {[%clk 0:01:16]}  hxg4 {[%clk 0:00:57]} 22. hxg4 {[%clk 0:01:11]}  Qf4 {[%clk 0:00:54]} 23. Qe8+ {[%clk 0:01:04]}  Kh7 {[%clk 0:00:52]} 24. Ne4 {[%clk 0:00:59]}  Bd4 {[%clk 0:00:46]} 25. d6 {[%clk 0:00:54]}  Be5 {[%clk 0:00:40]} 26. Ng3 {[%clk 0:00:10]}  Bxd6 {[%clk 0:00:39]} 27. Bxb7 {[%clk 0:00:09]}  Qxg4 {[%clk 0:00:35]} 28. Be4 {[%clk 0:00:08]}  Bxg3 {[%clk 0:00:33]} 29. Bxg6+ {[%clk 0:00:07]}  Qxg6 {[%clk 0:00:30]} 30. fxg3 {[%clk 0:00:07]}  Qc2+ {[%clk 0:00:30]} 31. Kh3 {[%clk 0:00:06]}  Qf5+ {[%clk 0:00:28]} 32. Kg2 {[%clk 0:00:05]}  Qc2+ {[%clk 0:00:27]} 33. Kh3 {[%clk 0:00:06]}  Qf5+ {[%clk 0:00:11]} 34. Kg2 {[%clk 0:00:05]}  Qd5+ {[%clk 0:00:11]} 35. Kf2 {[%clk 0:00:03]}  Qxa2 {[%clk 0:00:11]} 36. Qe4+ {[%clk 0:00:02]}  g6 {[%clk 0:00:11]} 37. Qh4+ {[%clk 0:00:00]}  Kg8 {[%clk 0:00:11]} 0-1

[Event "November 21 Late 2023"]
[Site "https://www.chess.com"]
[Date "2023.11.21"]
[Round "9"]
[White "Khater, Sherif"]
[Black "Todorovic, Bojan"]
[Result "1-0"]
[Board "63"]
[TimeControl "180+1"]
[WhiteFideId "2034280"]
[BlackFideId "917087"]
[WhiteElo "2515"]
[BlackElo "2266"]
[WhiteTeam "USA"]
[BlackTeam "SRB"]
[WhiteClock "0:00:38"]
[BlackClock "0:00:03"]

1. d4 {[%clk 0:03:00]}  g6 {[%clk 0:02:59]} 2. e4 {[%clk 0:03:00]}  Bg7 {[%clk 0:02:58]} 3. Nf3 {[%clk 0:03:00]}  d6 {[%clk 0:02:58]} 4. Nc3 {[%clk 0:02:59]}  a6 {[%clk 0:02:58]} 5. a4 {[%clk 0:02:58]}  Nc6 {[%clk 0:02:50]} 6. Bc4 {[%clk 0:02:57]}  Nf6 {[%clk 0:02:43]} 7. h3 {[%clk 0:02:56]}  O-O {[%clk 0:02:42]} 8. Be3 {[%clk 0:02:54]}  Nxe4 {[%clk 0:02:28]} 9. Nxe4 {[%clk 0:02:55]}  d5 {[%clk 0:02:28]} 10. Bd3 {[%clk 0:02:54]}  dxe4 {[%clk 0:02:26]} 11. Bxe4 {[%clk 0:02:55]}  Qd6 {[%clk 0:02:22]} 12. Qd2 {[%clk 0:02:47]}  f5 {[%clk 0:02:04]} 13. Bxc6 {[%clk 0:02:42]}  Qxc6 {[%clk 0:02:02]} 14. O-O {[%clk 0:02:37]}  Be6 {[%clk 0:01:57]} 15. Bh6 {[%clk 0:02:34]}  Bd5 {[%clk 0:01:35]} 16. Bxg7 {[%clk 0:02:34]}  Kxg7 {[%clk 0:01:35]} 17. Ne5 {[%clk 0:02:35]}  Qd6 {[%clk 0:01:25]} 18. Qf4 {[%clk 0:02:26]}  b5 {[%clk 0:01:18]} 19. Rfe1 {[%clk 0:02:20]}  e6 {[%clk 0:01:15]} 20. h4 {[%clk 0:02:15]}  h6 {[%clk 0:01:11]} 21. Ra3 {[%clk 0:02:13]}  Qb4 {[%clk 0:00:47]} 22. Rc3 {[%clk 0:01:38]}  c5 {[%clk 0:00:43]} 23. Rd1 {[%clk 0:01:22]}  c4 {[%clk 0:00:37]} 24. Rg3 {[%clk 0:01:15]}  Rf6 {[%clk 0:00:24]} 25. h5 {[%clk 0:01:12]}  Qxb2 {[%clk 0:00:14]} 26. Nxg6 {[%clk 0:01:07]}  Qxc2 {[%clk 0:00:12]} 27. Qc7+ {[%clk 0:00:45]}  Rf7 {[%clk 0:00:12]} 28. Ne5+ {[%clk 0:00:42]}  Kh8 {[%clk 0:00:03]} 29. Nxf7+ {[%clk 0:00:38]} 1-0

[Event "November 21 Late 2023"]
[Site "https://www.chess.com"]
[Date "2023.11.21"]
[Round "9"]
[White "Della Morte, German"]
[Black "Skaric, Djuro"]
[Result "1-0"]
[Board "64"]
[TimeControl "180+1"]
[WhiteFideId "113522"]
[BlackFideId "934569"]
[WhiteElo "2306"]
[BlackElo "2282"]
[WhiteTeam "ARG"]
[BlackTeam "SRB"]
[WhiteClock "0:00:56"]
[BlackClock "0:00:45"]

1. e4 {[%clk 0:02:54]}  d6 {[%clk 0:03:00]} 2. Nc3 {[%clk 0:02:53]}  g6 {[%clk 0:03:01]} 3. g3 {[%clk 0:02:54]}  Bg7 {[%clk 0:03:02]} 4. Bg2 {[%clk 0:02:55]}  Nf6 {[%clk 0:03:02]} 5. d3 {[%clk 0:02:55]}  O-O {[%clk 0:03:03]} 6. f4 {[%clk 0:02:56]}  Nc6 {[%clk 0:03:03]} 7. Nf3 {[%clk 0:02:56]}  e5 {[%clk 0:03:04]} 8. O-O {[%clk 0:02:56]}  Ng4 {[%clk 0:03:03]} 9. h3 {[%clk 0:02:56]}  Nh6 {[%clk 0:03:03]} 10. Be3 {[%clk 0:02:54]}  f5 {[%clk 0:03:03]} 11. Qd2 {[%clk 0:02:54]}  Nf7 {[%clk 0:02:55]} 12. Nd5 {[%clk 0:02:52]}  Be6 {[%clk 0:02:55]} 13. c4 {[%clk 0:02:51]}  Ne7 {[%clk 0:02:52]} 14. fxe5 {[%clk 0:02:51]}  dxe5 {[%clk 0:02:51]} 15. Bg5 {[%clk 0:02:51]}  Bxd5 {[%clk 0:02:46]} 16. cxd5 {[%clk 0:02:49]}  h6 {[%clk 0:02:45]} 17. Be3 {[%clk 0:02:46]}  Kh7 {[%clk 0:02:44]} 18. Rac1 {[%clk 0:02:45]}  Nd6 {[%clk 0:02:35]} 19. Qb4 {[%clk 0:02:42]}  a5 {[%clk 0:02:31]} 20. Qc3 {[%clk 0:02:41]}  fxe4 {[%clk 0:02:30]} 21. dxe4 {[%clk 0:02:41]}  Nxe4 {[%clk 0:02:28]} 22. Qxc7 {[%clk 0:02:40]}  Nxd5 {[%clk 0:02:26]} 23. Qxb7 {[%clk 0:02:24]}  Nxe3 {[%clk 0:02:19]} 24. Rc7 {[%clk 0:02:20]}  Rg8 {[%clk 0:02:12]} 25. Nxe5 {[%clk 0:02:07]}  Nd5 {[%clk 0:02:06]} 26. Rxg7+ {[%clk 0:02:00]}  Rxg7 {[%clk 0:02:03]} 27. Rf7 {[%clk 0:02:00]}  Qb6+ {[%clk 0:01:58]} 28. Qxb6 {[%clk 0:01:58]}  Nxb6 {[%clk 0:01:58]} 29. Bxe4 {[%clk 0:01:58]}  Re8 {[%clk 0:01:54]} 30. Bxg6+ {[%clk 0:01:55]}  Kh8 {[%clk 0:01:45]} 31. Rxg7 {[%clk 0:01:56]}  Rxe5 {[%clk 0:01:44]} 32. Rh7+ {[%clk 0:01:56]}  Kg8 {[%clk 0:01:44]} 33. Rb7 {[%clk 0:01:56]}  Na4 {[%clk 0:01:41]} 34. Kf2 {[%clk 0:01:48]}  Nc5 {[%clk 0:01:31]} 35. Rc7 {[%clk 0:01:42]}  Na4 {[%clk 0:01:22]} 36. b3 {[%clk 0:01:37]}  Nb6 {[%clk 0:01:20]} 37. h4 {[%clk 0:01:29]}  Kf8 {[%clk 0:01:18]} 38. Rf7+ {[%clk 0:01:26]}  Kg8 {[%clk 0:01:18]} 39. Rb7 {[%clk 0:01:26]}  Nc8 {[%clk 0:01:08]} 40. Rb8 {[%clk 0:01:24]}  Rc5 {[%clk 0:01:08]} 41. Rb7 {[%clk 0:01:19]}  Nd6 {[%clk 0:01:07]} 42. Rb6 {[%clk 0:01:17]}  Nb5 {[%clk 0:01:02]} 43. Bd3 {[%clk 0:01:16]}  Nc3 {[%clk 0:01:00]} 44. a4 {[%clk 0:01:13]}  Kg7 {[%clk 0:00:59]} 45. Rg6+ {[%clk 0:01:11]}  Kf7 {[%clk 0:00:58]} 46. Rxh6 {[%clk 0:01:11]}  Re5 {[%clk 0:00:55]} 47. g4 {[%clk 0:01:07]}  Kg7 {[%clk 0:00:54]} 48. Rg6+ {[%clk 0:01:06]}  Kf8 {[%clk 0:00:54]} 49. Rg5 {[%clk 0:01:03]}  Re6 {[%clk 0:00:48]} 50. Rxa5 {[%clk 0:01:01]}  Rb6 {[%clk 0:00:48]} 51. Bc4 {[%clk 0:01:00]}  Rf6+ {[%clk 0:00:48]} 52. Ke3 {[%clk 0:00:59]}  Nd1+ {[%clk 0:00:48]} 53. Kd2 {[%clk 0:00:58]}  Nf2 {[%clk 0:00:48]} 54. Rf5 {[%clk 0:00:57]}  Nxg4 {[%clk 0:00:45]} 55. Rxf6+ {[%clk 0:00:56]} 1-0

[Event "November 21 Late 2023"]
[Site "https://www.chess.com"]
[Date "2023.11.21"]
[Round "9"]
[White "Silvestre, Christian"]
[Black "Osmak, Yuliia"]
[Result "1/2-1/2"]
[Board "66"]
[TimeControl "180+1"]
[WhiteFideId "30956269"]
[BlackFideId "14101602"]
[WhiteElo "2347"]
[BlackElo "2303"]
[WhiteTeam "USA"]
[BlackTeam "UKR"]
[WhiteClock "0:00:07"]
[BlackClock "0:00:01"]

1. e4 {[%clk 0:03:00]}  c5 {[%clk 0:02:57]} 2. Nf3 {[%clk 0:02:58]}  Nc6 {[%clk 0:02:56]} 3. Nc3 {[%clk 0:02:58]}  e5 {[%clk 0:02:49]} 4. Bc4 {[%clk 0:02:56]}  d6 {[%clk 0:02:48]} 5. d3 {[%clk 0:02:55]}  Be7 {[%clk 0:02:44]} 6. a3 {[%clk 0:02:55]}  Nf6 {[%clk 0:02:42]} 7. h3 {[%clk 0:02:55]}  O-O {[%clk 0:02:40]} 8. O-O {[%clk 0:02:56]}  Be6 {[%clk 0:02:39]} 9. Nd5 {[%clk 0:02:53]}  Bxd5 {[%clk 0:02:28]} 10. Bxd5 {[%clk 0:02:52]}  Nxd5 {[%clk 0:02:27]} 11. exd5 {[%clk 0:02:53]}  Nb8 {[%clk 0:02:27]} 12. b4 {[%clk 0:02:40]}  Nd7 {[%clk 0:02:23]} 13. Rb1 {[%clk 0:02:26]}  b6 {[%clk 0:02:20]} 14. Nd2 {[%clk 0:02:16]}  Rc8 {[%clk 0:02:15]} 15. b5 {[%clk 0:02:09]}  f5 {[%clk 0:02:12]} 16. f4 {[%clk 0:02:05]}  exf4 {[%clk 0:01:58]} 17. Nc4 {[%clk 0:02:04]}  g5 {[%clk 0:01:55]} 18. Bb2 {[%clk 0:01:54]}  Nf6 {[%clk 0:01:48]} 19. Re1 {[%clk 0:01:45]}  Nxd5 {[%clk 0:01:44]} 20. Qh5 {[%clk 0:01:44]}  Bf6 {[%clk 0:01:40]} 21. Re6 {[%clk 0:01:33]}  Bxb2 {[%clk 0:01:33]} 22. Rxb2 {[%clk 0:01:26]}  Nc3 {[%clk 0:01:21]} 23. Rg6+ {[%clk 0:01:19]}  Kh8 {[%clk 0:01:16]} 24. Qxg5 {[%clk 0:01:07]}  Qxg5 {[%clk 0:01:11]} 25. Rxg5 {[%clk 0:01:08]}  Rcd8 {[%clk 0:00:56]} 26. Rb3 {[%clk 0:01:06]}  Ne2+ {[%clk 0:00:54]} 27. Kf2 {[%clk 0:01:05]}  Nd4 {[%clk 0:00:55]} 28. Rb2 {[%clk 0:01:03]}  Rfe8 {[%clk 0:00:54]} 29. c3 {[%clk 0:01:01]}  d5 {[%clk 0:00:48]} 30. Nxb6 {[%clk 0:00:55]}  Ne6 {[%clk 0:00:48]} 31. Rxf5 {[%clk 0:00:45]}  axb6 {[%clk 0:00:47]} 32. Re2 {[%clk 0:00:44]}  Nc7 {[%clk 0:00:42]} 33. Rxe8+ {[%clk 0:00:39]}  Rxe8 {[%clk 0:00:43]} 34. a4 {[%clk 0:00:36]}  Ra8 {[%clk 0:00:41]} 35. Rf7 {[%clk 0:00:34]}  Ne6 {[%clk 0:00:39]} 36. Rf6 {[%clk 0:00:31]}  Re8 {[%clk 0:00:37]} 37. Rf7 {[%clk 0:00:23]}  c4 {[%clk 0:00:31]} 38. dxc4 {[%clk 0:00:21]}  dxc4 {[%clk 0:00:32]} 39. Rb7 {[%clk 0:00:20]}  Nc5 {[%clk 0:00:31]} 40. Rxb6 {[%clk 0:00:20]}  Nxa4 {[%clk 0:00:30]} 41. Rc6 {[%clk 0:00:20]}  Nxc3 {[%clk 0:00:27]} 42. Rxc4 {[%clk 0:00:19]}  Nxb5 {[%clk 0:00:27]} 43. Rxf4 {[%clk 0:00:19]}  Nd6 {[%clk 0:00:26]} 44. g4 {[%clk 0:00:18]}  Kg7 {[%clk 0:00:26]} 45. Ra4 {[%clk 0:00:16]}  Re7 {[%clk 0:00:25]} 46. h4 {[%clk 0:00:16]}  Rb7 {[%clk 0:00:25]} 47. Kg3 {[%clk 0:00:15]}  Rc7 {[%clk 0:00:24]} 48. Kf4 {[%clk 0:00:15]}  Rc4+ {[%clk 0:00:24]} 49. Rxc4 {[%clk 0:00:14]}  Nxc4 {[%clk 0:00:25]} 50. g5 {[%clk 0:00:14]}  Kg6 {[%clk 0:00:24]} 51. Kg4 {[%clk 0:00:13]}  Ne5+ {[%clk 0:00:24]} 52. Kf4 {[%clk 0:00:11]}  Nd3+ {[%clk 0:00:23]} 53. Kg4 {[%clk 0:00:11]}  Nf2+ {[%clk 0:00:23]} 54. Kf3 {[%clk 0:00:10]}  Nd1 {[%clk 0:00:22]} 55. Kg4 {[%clk 0:00:10]}  Ne3+ {[%clk 0:00:21]} 56. Kf3 {[%clk 0:00:10]}  Nd5 {[%clk 0:00:17]} 57. Kg4 {[%clk 0:00:11]}  Ne7 {[%clk 0:00:15]} 58. h5+ {[%clk 0:00:10]}  Kg7 {[%clk 0:00:15]} 59. Kf4 {[%clk 0:00:09]}  Nd5+ {[%clk 0:00:14]} 60. Ke5 {[%clk 0:00:09]}  Ne3 {[%clk 0:00:14]} 61. Kf4 {[%clk 0:00:09]}  Ng2+ {[%clk 0:00:14]} 62. Kg3 {[%clk 0:00:08]}  Ne1 {[%clk 0:00:13]} 63. Kf4 {[%clk 0:00:08]}  Kg8 {[%clk 0:00:13]} 64. Kf5 {[%clk 0:00:09]}  Kf8 {[%clk 0:00:12]} 65. Kf6 {[%clk 0:00:07]}  Nf3 {[%clk 0:00:09]} 66. g6 {[%clk 0:00:07]}  h6 {[%clk 0:00:06]} 67. g7+ {[%clk 0:00:07]}  Kg8 {[%clk 0:00:06]} 68. Kg6 {[%clk 0:00:08]}  Ne5+ {[%clk 0:00:04]} 69. Kxh6 {[%clk 0:00:09]}  Nf7+ {[%clk 0:00:02]} 70. Kg6 {[%clk 0:00:09]}  Ne5+ {[%clk 0:00:03]} 71. Kf6 {[%clk 0:00:09]}  Nf7 {[%clk 0:00:01]} 72. Kg6 {[%clk 0:00:06]}  Ne5+ {[%clk 0:00:01]} 73. Kf6 {[%clk 0:00:06]}  Nf7 {[%clk 0:00:02]} 74. Ke6 {[%clk 0:00:06]}  Kxg7 {[%clk 0:00:01]} 75. h6+ {[%clk 0:00:07]}  Nxh6 {[%clk 0:00:01]} 1/2-1/2

[Event "November 21 Late 2023"]
[Site "https://www.chess.com"]
[Date "2023.11.21"]
[Round "9"]
[White "Ventura Bolet, Maxim"]
[Black "Dias, Joao Batista"]
[Result "1-0"]
[Board "69"]
[TimeControl "180+1"]
[WhiteFideId "22238824"]
[BlackFideId "2108240"]
[WhiteElo "2227"]
[BlackElo "1907"]
[WhiteTeam "ESP"]
[BlackTeam "BRA"]
[WhiteClock "0:00:06"]
[BlackClock "0:00:03"]

1. Nf3 {[%clk 0:03:00]}  Nf6 {[%clk 0:02:56]} 2. g3 {[%clk 0:03:00]}  g6 {[%clk 0:02:56]} 3. Bg2 {[%clk 0:03:00]}  Bg7 {[%clk 0:02:57]} 4. O-O {[%clk 0:03:00]}  O-O {[%clk 0:02:58]} 5. c4 {[%clk 0:03:01]}  c6 {[%clk 0:02:58]} 6. d4 {[%clk 0:03:00]}  d6 {[%clk 0:02:59]} 7. Nc3 {[%clk 0:03:00]}  Bg4 {[%clk 0:02:59]} 8. d5 {[%clk 0:02:50]}  c5 {[%clk 0:02:58]} 9. h3 {[%clk 0:02:42]}  Bxf3 {[%clk 0:02:58]} 10. exf3 {[%clk 0:02:37]}  Nbd7 {[%clk 0:02:59]} 11. f4 {[%clk 0:02:35]}  Re8 {[%clk 0:02:57]} 12. a4 {[%clk 0:02:35]}  a6 {[%clk 0:02:57]} 13. a5 {[%clk 0:02:33]}  b6 {[%clk 0:02:49]} 14. axb6 {[%clk 0:02:28]}  Qxb6 {[%clk 0:02:44]} 15. Re1 {[%clk 0:02:16]}  Qb7 {[%clk 0:02:25]} 16. Qc2 {[%clk 0:02:11]}  Nb6 {[%clk 0:02:21]} 17. b3 {[%clk 0:02:08]}  Nh5 {[%clk 0:02:11]} 18. Bd2 {[%clk 0:02:05]}  Bd4 {[%clk 0:02:05]} 19. g4 {[%clk 0:01:40]}  Nf6 {[%clk 0:01:53]} 20. Be3 {[%clk 0:01:37]}  Bxc3 {[%clk 0:01:45]} 21. Qxc3 {[%clk 0:01:36]}  h5 {[%clk 0:01:39]} 22. g5 {[%clk 0:01:32]}  Nh7 {[%clk 0:01:34]} 23. Bc1 {[%clk 0:01:31]}  f6 {[%clk 0:01:32]} 24. Bb2 {[%clk 0:01:24]}  Qd7 {[%clk 0:01:26]} 25. Re6 {[%clk 0:01:21]}  Nf8 {[%clk 0:01:13]} 26. Rae1 {[%clk 0:01:11]}  Nxe6 {[%clk 0:01:11]} 27. Rxe6 {[%clk 0:01:12]}  Qd8 {[%clk 0:01:11]} 28. Qc2 {[%clk 0:00:58]}  Kg7 {[%clk 0:01:05]} 29. Be4 {[%clk 0:00:48]}  Nd7 {[%clk 0:00:57]} 30. Bxg6 {[%clk 0:00:46]}  Rh8 {[%clk 0:00:54]} 31. Qe4 {[%clk 0:00:27]}  Kf8 {[%clk 0:00:50]} 32. gxf6 {[%clk 0:00:20]}  Nxf6 {[%clk 0:00:46]} 33. Qf5 {[%clk 0:00:15]}  Kg7 {[%clk 0:00:41]} 34. Bxh5 {[%clk 0:00:12]}  Rxh5 {[%clk 0:00:40]} 35. Qxh5 {[%clk 0:00:11]}  Qg8 {[%clk 0:00:33]} 36. Kh1 {[%clk 0:00:10]}  Qf7 {[%clk 0:00:32]} 37. Qg5+ {[%clk 0:00:09]}  Kf8 {[%clk 0:00:28]} 38. Bxf6 {[%clk 0:00:09]}  Qh7 {[%clk 0:00:18]} 39. Bxe7+ {[%clk 0:00:08]}  Kf7 {[%clk 0:00:16]} 40. Qf6+ {[%clk 0:00:07]}  Kg8 {[%clk 0:00:15]} 41. Qg6+ {[%clk 0:00:04]}  Qxg6 {[%clk 0:00:14]} 42. Rxg6+ {[%clk 0:00:04]}  Kf7 {[%clk 0:00:15]} 43. Rxd6 {[%clk 0:00:03]}  Kxe7 {[%clk 0:00:15]} 44. Rc6 {[%clk 0:00:03]}  a5 {[%clk 0:00:15]} 45. Rxc5 {[%clk 0:00:04]}  a4 {[%clk 0:00:15]} 46. bxa4 {[%clk 0:00:04]}  Rxa4 {[%clk 0:00:15]} 47. Rc6 {[%clk 0:00:05]}  Ra2 {[%clk 0:00:14]} 48. Kg2 {[%clk 0:00:06]}  Ra3 {[%clk 0:00:13]} 49. h4 {[%clk 0:00:05]}  Kf7 {[%clk 0:00:13]} 50. h5 {[%clk 0:00:06]}  Ra8 {[%clk 0:00:10]} 51. Kf3 {[%clk 0:00:05]}  Rh8 {[%clk 0:00:08]} 52. Kg4 {[%clk 0:00:05]}  Rg8+ {[%clk 0:00:08]} 53. Kf5 {[%clk 0:00:05]}  Rg2 {[%clk 0:00:07]} 54. Rc7+ {[%clk 0:00:05]}  Kg8 {[%clk 0:00:07]} 55. h6 {[%clk 0:00:05]}  Kh8 {[%clk 0:00:06]} 56. d6 {[%clk 0:00:06]}  Rxf2 {[%clk 0:00:06]} 57. d7 {[%clk 0:00:05]}  Rd2 {[%clk 0:00:07]} 58. Rc8+ {[%clk 0:00:05]}  Kh7 {[%clk 0:00:08]} 59. d8=Q {[%clk 0:00:05]}  Rxd8 {[%clk 0:00:06]} 60. Rxd8 {[%clk 0:00:06]}  Kxh6 {[%clk 0:00:03]} 61. Rd7 {[%clk 0:00:06]} 1-0